bitfinex/quotes_SOLUSD_20251224
["timestamp","ask_amount","ask_price","bid_price","bid_amount"]
[1766553415179,0.71,121.8,121.77,2.51349378]
[1766553417082,0.71,121.8,121.77,10.72567438]
[1766553417695,0.71,121.8,121.78,1.81349378]
[1766553417884,15.71,121.81,121.79,2.51349378]
[1766553418085,15.71,121.81,121.79,1.81349378]
[1766553418794,15.71,121.81,121.78,0.7]
[1766553418795,15.71,121.81,121.78,2.51349378]
[1766553420315,0.71,121.8,121.77,1.81349378]
[1766553420482,0.71,121.8,121.77,2.51349378]
[1766553423203,0.71,121.8,121.77,0.7]
[1766553437095,0.71,121.8,121.77,2.51349378]
[1766553437302,0.71,121.8,121.76,10.74615956]
[1766553439109,0.71,121.8,121.76,10.02615956]
[1766553439309,0.71,121.8,121.77,0.72]
[1766553441313,0.72,121.79,121.76,0.72]
[1766553441692,0.72,121.79,121.75,1.81349378]
[1766553442016,0.72,121.79,121.75,2.53349378]
[1766553442991,0.72,121.79,121.75,0.72]
[1766553443190,0.72,121.79,121.75,2.53349378]
[1766553443913,0.72,121.79,121.75,0.72]
[1766553444103,0.72,121.79,121.75,2.53349378]
[1766553444296,0.72,121.79,121.76,1.81349378]
[1766553444494,0.72,121.79,121.75,0.72]
[1766553444703,0.72,121.79,121.76,1.81349378]
[1766553447209,0.72,121.8,121.77,2.53349378]
[1766553447411,0.72,121.8,121.78,2.53349378]
[1766553447613,15.0,121.81,121.79,2.53349378]
[1766553447909,15.72,121.81,121.79,2.53349378]
[1766553448090,15.72,121.81,121.79,3.55344559]
[1766553448509,15.72,121.83,121.8,3.55344559]
[1766553448713,0.72,121.82,121.81,2.83344559]
[1766553449214,0.72,121.82,121.8,2.83344559]
[1766553452030,0.72,121.82,121.8,3.55344559]
[1766553454224,15.72,121.83,121.8,3.55344559]
[1766553455735,15.72,121.83,121.81,0.7]
[1766553455900,15.0,121.84,121.81,3.53344559]
[1766553456100,0.66,121.83,121.81,0.7]
[1766553456509,0.66,121.83,121.8,2.83344559]
[1766553456712,0.66,121.83,121.8,3.53344559]
[1766553460218,2.83344559,121.81,121.77,2.83344559]
[1766553460429,0.69,121.8,121.77,0.68]
[1766553464933,0.69,121.8,121.77,3.51344559]
[1766553468322,0.69,121.8,121.78,3.51344559]
[1766553468522,15.0,121.81,121.79,3.51344559]
[1766553468724,0.69,121.82,121.8,3.51344559]
[1766553469836,15.69,121.83,121.8,3.51344559]
[1766553471323,10.43767296,121.88,121.82,5.66689118]
[1766553471523,0.1,121.89,121.87,2.83344559]
[1766553471724,0.1,121.9,121.88,27.54929886]
[1766553471941,0.79,121.91,121.89,2.83344559]
[1766553472117,0.1,121.91,121.9,2.83344559]
[1766553472427,0.79,121.92,121.9,2.83344559]
[1766553472624,0.1,121.92,121.91,2.83344559]
[1766553472832,0.79,121.93,121.91,2.83344559]
[1766553473746,0.79,121.93,121.88,18.64233326]
[1766553474130,0.79,121.93,121.89,2.83344559]
[1766553475524,0.79,121.93,121.9,2.83344559]
[1766553476321,0.79,121.93,121.88,18.64233326]
[1766553476522,0.79,121.93,121.9,2.83344559]
[1766553477740,0.79,121.93,121.88,18.64233326]
[1766553477929,0.79,121.93,121.9,2.83344559]
[1766553481349,0.79,121.94,121.92,2.83344559]
[1766553482130,0.1,121.94,121.92,2.83344559]
[1766553482537,0.79,121.94,121.92,2.83344559]
[1766553482861,0.79,121.94,121.91,2.83344559]
[1766553483428,0.79,121.94,121.9,11.03683086]
[1766553483842,0.79,121.94,121.9,2.83344559]
[1766553484356,0.79,121.94,121.91,2.83344559]
[1766553493360,0.79,121.94,121.9,11.03667854]
[1766553499868,0.79,121.94,121.91,2.83344559]
[1766553500474,0.79,121.94,121.9,8.20323295]
[1766553500648,0.79,121.94,121.91,2.83344559]
[1766553501045,0.68,121.93,121.9,2.83344559]
[1766553502166,8.20147083,121.93,121.89,2.83344559]
[1766553502366,0.68,121.92,121.88,2.83344559]
[1766553502564,0.68,121.92,121.89,2.83344559]
[1766553503769,0.68,121.92,121.88,2.83344559]
[1766553504677,0.68,121.91,121.88,2.83344559]
[1766553508476,0.68,121.9,121.87,2.83344559]
[1766553508678,0.68,121.9,121.86,13.27111855]
[1766553509282,0.68,121.9,121.87,2.83344559]
[1766553509588,0.68,121.89,121.85,2.83344559]
[1766553509762,0.68,121.88,121.83,8.20769122]
[1766553509966,0.68,121.88,121.84,1.8116138]
[1766553510273,14.98,121.89,121.82,10.43767296]
[1766553510479,0.68,121.86,121.83,1.8116138]
[1766553510779,0.68,121.86,121.82,1.8116138]
[1766553511455,0.68,121.86,121.81,8.20929086]
[1766553511654,0.68,121.86,121.82,1.8116138]
[1766553513276,0.68,121.86,121.83,1.8116138]
[1766553514616,0.68,121.87,121.84,1.8116138]
[1766553514979,0.68,121.87,121.82,8.20874202]
[1766553515158,0.68,121.87,121.84,1.8116138]
[1766553515356,0.68,121.87,121.83,1.8116138]
[1766553517274,0.71,121.85,121.82,1.8116138]
[1766553517664,0.71,121.85,121.81,1.8116138]
[1766553517862,0.71,121.85,121.8,12.24928676]
[1766553517863,1.8116138,121.85,121.8,12.24928676]
[1766553518066,0.71,121.84,121.8,12.24928676]
[1766553518766,0.71,121.83,121.8,12.24928676]
[1766553521285,0.7,121.84,121.81,1.8116138]
[1766553523189,0.7,121.84,121.79,8.21085474]
[1766553523488,0.7,121.84,121.81,1.8116138]
[1766553524986,0.7,121.83,121.79,1.8116138]
[1766553525573,2.5116138,121.83,121.79,1.8116138]
[1766553525781,0.7,121.82,121.79,1.8116138]
[1766553531293,0.7,121.82,121.78,10.22299076]
[1766553531472,0.7,121.82,121.79,1.8116138]
[1766553532106,0.7,121.82,121.78,8.41137696]
[1766553532278,0.7,121.82,121.79,1.8116138]
[1766553536700,0.7,121.81,121.78,0.2]
[1766553538206,0.7,121.81,121.78,2.0116138]
[1766553539703,0.7,121.81,121.78,0.2]
[1766553539909,0.7,121.8,121.78,0.2]
[1766553540410,0.7,121.8,121.76,1.8116138]
[1766553540612,10.0220105,121.8,121.76,1.8116138]
[1766553540793,0.7,121.79,121.75,12.44928676]
[1766553541301,0.7,121.79,121.76,1.8116138]
[1766553541508,0.7,121.79,121.76,2.0116138]
[1766553543211,0.7,121.79,121.77,1.8116138]
[1766553544634,10.02137924,121.81,121.77,1.8116138]
[1766553544806,0.7,121.8,121.77,2.0116138]
[1766553545816,0.7,121.8,121.78,1.8116138]
[1766553546118,0.7,121.81,121.79,1.8116138]
[1766553548006,14.98,121.83,121.79,1.8116138]
[1766553548206,0.66,121.82,121.81,1.8116138]
[1766553549512,15.64,121.83,121.81,1.8116138]
[1766553549923,0.66,121.85,121.82,1.8116138]
[1766553550230,0.66,121.85,121.83,1.8116138]
[1766553550392,0.66,121.85,121.82,1.8116138]
[1766553553713,0.66,121.86,121.84,1.8116138]
[1766553555715,0.66,121.87,121.85,1.8116138]
[1766553556730,0.66,121.87,121.84,8.4073337]
[1766553557027,0.66,121.87,121.85,1.8116138]
[1766553557830,0.66,121.86,121.83,1.8116138]
[1766553558723,0.66,121.86,121.82,0.2]
[1766553558906,0.66,121.86,121.83,1.8116138]
[1766553559106,0.66,121.85,121.82,2.0116138]
[1766553559318,0.66,121.85,121.82,1.8116138]
[1766553559825,0.66,121.85,121.81,2.0116138]
[1766553560026,0.66,121.84,121.81,1.8116138]
[1766553560231,0.66,121.84,121.8,2.0116138]
[1766553560400,0.66,121.84,121.81,1.8116138]
[1766553560600,0.66,121.84,121.82,1.8116138]
[1766553560796,0.66,121.84,121.81,0.2]
[1766553561017,0.66,121.84,121.81,1.8116138]
[1766553564032,10.43767296,121.88,121.79,25.41767296]
[1766553564237,12.48375916,121.92,121.87,1.8116138]
[1766553564535,0.66,121.9,121.88,1.8116138]
[1766553564724,0.66,121.9,121.87,1.8116138]
[1766553565027,1.8116138,121.9,121.85,14.98]
[1766553565229,1.8116138,121.9,121.84,25.41767296]
[1766553565230,1.8116138,121.89,121.84,25.41767296]
[1766553565432,0.66,121.88,121.85,1.8116138]
[1766553568822,0.66,121.88,121.84,16.7916138]
[1766553570939,2.4716138,121.87,121.84,14.98]
[1766553571139,0.66,121.86,121.82,25.00033074]
[1766553571327,0.66,121.86,121.82,10.02033074]
[1766553571641,0.66,121.86,121.83,1.8116138]
[1766553572152,0.66,121.86,121.84,2.83135751]
[1766553572345,0.66,121.88,121.85,2.83135751]
[1766553572641,0.66,121.9,121.86,2.83135751]
[1766553573238,0.66,121.9,121.86,11.03746517]
[1766553573444,0.66,121.9,121.87,2.83135751]
[1766553573923,0.66,121.9,121.86,11.03746517]
[1766553576319,0.66,121.87,121.82,14.98]
[1766553576520,0.66,121.87,121.83,21.47703635]
[1766553576720,0.66,121.87,121.84,2.83135751]
[1766553577751,0.66,121.87,121.83,18.64567884]
[1766553578042,0.66,121.87,121.84,2.83135751]
[1766553580651,0.67,121.89,121.86,2.83135751]
[1766553600052,14.98,121.91,121.83,10.43767296]
[1766553600253,0.71,121.85,121.82,2.83135751]
[1766553600461,0.71,121.85,121.82,14.98]
[1766553600975,0.71,121.85,121.82,17.81135751]
[1766553601166,0.71,121.86,121.83,2.83135751]
[1766553601768,0.71,121.86,121.82,23.18860056]
[1766553602059,0.71,121.86,121.83,2.83135751]
[1766553603968,2.83135751,121.87,121.84,2.83135751]
[1766553603969,0.71,121.87,121.84,2.83135751]
[1766553606076,0.71,121.87,121.83,11.03950024]
[1766553616190,0.71,121.87,121.84,2.83135751]
[1766553617178,0.72,121.89,121.86,2.83135751]
[1766553617383,0.72,121.89,121.85,2.83135751]
[1766553622188,0.72,121.89,121.86,2.83135751]
[1766553624280,0.72,121.89,121.85,14.98]
[1766553624462,0.72,121.89,121.85,17.81135751]
[1766553626287,0.72,121.89,121.85,23.1865813]
[1766553626496,0.72,121.89,121.86,2.83135751]
[1766553632009,0.72,121.89,121.86,1.81106532]
[1766553632509,0.72,121.89,121.87,1.81106532]
[1766553633308,0.72,121.9,121.87,1.81106532]
[1766553636505,0.71,121.91,121.89,1.81106532]
[1766553636712,20.45033048,121.93,121.9,1.81106532]
[1766553636713,0.71,121.93,121.9,1.81106532]
[1766553636893,0.1,121.94,121.92,1.81106532]
[1766553637215,0.78,121.94,121.91,1.81106532]
[1766553638009,0.78,121.94,121.9,10.0142473]
[1766553638185,0.68,121.93,121.89,35.43262479]
[1766553638382,0.68,121.93,121.9,8.20334971]
[1766553638617,0.68,121.93,121.9,10.01441503]
[1766553641513,0.68,121.93,121.9,8.20334971]
[1766553641694,0.68,121.93,121.9,10.01441503]
[1766553645018,0.68,121.93,121.91,1.81106532]
[1766553646041,0.68,121.93,121.89,20.45260368]
[1766553646317,0.68,121.93,121.9,1.81106532]
[1766553647417,0.68,121.93,121.89,35.43260368]
[1766553656437,0.68,121.93,121.9,1.81106532]
[1766553656654,0.68,121.93,121.89,33.62153836]
[1766553656941,0.68,121.93,121.9,1.81106532]
[1766553661643,0.68,121.92,121.88,10.01559107]
[1766553661843,0.68,121.91,121.87,1.81106532]
[1766553662143,0.68,121.9,121.87,1.81106532]
[1766553663116,0.68,121.91,121.88,10.0157532]
[1766553663342,0.68,121.91,121.88,24.9957532]
[1766553664358,0.68,121.91,121.88,16.79106532]
[1766553671056,0.68,121.91,121.88,14.98]
[1766553671251,0.68,121.91,121.88,16.79106532]
[1766553675059,8.20150593,121.93,121.89,1.81106532]
[1766553675362,0.68,121.92,121.89,1.81106532]
[1766553677561,0.68,121.92,121.89,10.01516673]
[1766553683859,0.68,121.92,121.89,1.81106532]
[1766553685165,8.88215912,121.92,121.89,1.81106532]
[1766553685362,0.68,121.91,121.89,1.81106532]
[1766553688367,0.68,121.91,121.88,14.98]
[1766553688856,0.68,121.91,121.88,16.79106532]
[1766553691974,0.68,121.91,121.88,17.80871151]
[1766553693377,0.68,121.92,121.88,17.80871151]
[1766553693876,0.68,121.92,121.89,2.82871151]
[1766553707903,0.68,121.92,121.88,26.01337067]
[1766553711614,0.68,121.92,121.88,23.18465916]
[1766553711913,0.68,121.92,121.88,26.01337067]
[1766553716314,0.68,121.92,121.88,23.18465916]
[1766553716491,0.68,121.92,121.88,26.01337067]
[1766553719120,0.68,121.91,121.85,10.43767296]
[1766553719303,0.68,121.91,121.86,17.80871151]
[1766553719621,2.82871151,121.91,121.86,2.82871151]
[1766553719796,0.68,121.9,121.86,17.80871151]
[1766553721168,0.68,121.86,121.82,0.68]
[1766553721418,2.82871151,121.87,121.81,0.68]
[1766553721419,0.68,121.84,121.81,0.68]
[1766553722712,0.68,121.84,121.81,3.50871151]
[1766553724819,0.68,121.84,121.81,2.82871151]
[1766553725636,0.68,121.83,121.79,13.94638447]
[1766553725837,2.82871151,121.81,121.75,8.41332381]
[1766553726142,0.68,121.8,121.77,2.82871151]
[1766553727420,0.68,121.8,121.77,3.48871151]
[1766553727639,0.68,121.8,121.77,2.82871151]
[1766553730322,0.68,121.8,121.78,2.82871151]
[1766553730522,0.68,121.8,121.77,8.87203996]
[1766553730945,0.68,121.8,121.78,2.82871151]
[1766553731634,0.68,121.8,121.77,8.87203996]
[1766553731841,0.68,121.8,121.78,2.82871151]
[1766553733736,0.68,121.8,121.77,3.48871151]
[1766553736185,0.68,121.8,121.77,0.66]
[1766553736186,8.89029712,121.8,121.77,0.66]
[1766553736460,0.71,121.79,121.75,18.66871151]
[1766553736667,0.71,121.79,121.76,3.48871151]
[1766553736846,11.03837984,121.81,121.77,2.82871151]
[1766553737159,0.71,121.8,121.77,3.48871151]
[1766553737545,0.71,121.8,121.76,2.82871151]
[1766553737741,0.71,121.79,121.76,2.82871151]
[1766553738154,0.71,121.79,121.75,3.68871151]
[1766553739761,0.71,121.79,121.75,0.86]
[1766553739968,0.71,121.79,121.75,3.68871151]
[1766553742068,0.71,121.79,121.76,2.82871151]
[1766553742255,0.71,121.81,121.77,3.48871151]
[1766553743055,0.71,121.81,121.77,2.82871151]
[1766553743255,0.71,121.81,121.77,3.48871151]
[1766553743455,0.71,121.81,121.78,2.82871151]
[1766553745077,0.71,121.81,121.75,0.2]
[1766553745277,0.71,121.79,121.75,11.90202347]
[1766553745458,0.71,121.79,121.75,11.90209063]
[1766553745658,0.71,121.79,121.76,3.48871151]
[1766553746785,0.71,121.79,121.75,0.86]
[1766553746987,0.71,121.77,121.75,0.2]
[1766553747171,0.71,121.76,121.75,0.2]
[1766553747372,0.71,121.75,121.71,3.68871151]
[1766553749082,0.71,121.75,121.71,0.86]
[1766553749263,0.71,121.74,121.71,3.02871151]
[1766553749466,0.71,121.74,121.71,0.2]
[1766553749882,0.71,121.73,121.71,0.2]
[1766553750189,0.71,121.72,121.69,0.2]
[1766553750363,0.71,121.69,121.66,0.2]
[1766553750562,2.82871151,121.67,121.63,0.86]
[1766553750761,2.82871151,121.66,121.63,0.2]
[1766553750969,0.71,121.65,121.63,0.2]
[1766553751872,0.71,121.67,121.64,3.48871151]
[1766553752071,10.43767296,121.68,121.65,3.48871151]
[1766553752277,0.71,121.68,121.65,0.66]
[1766553752485,0.71,121.68,121.65,3.48871151]
[1766553753174,0.71,121.71,121.67,3.48871151]
[1766553753669,0.71,121.7,121.67,0.66]
[1766553753870,0.71,121.71,121.68,2.82871151]
[1766553754069,15.0,121.72,121.68,0.66]
[1766553754269,8.21504367,121.73,121.69,2.47654971]
[1766553754597,0.71,121.72,121.69,2.47654971]
[1766553754799,0.71,121.72,121.69,0.66]
[1766553755864,2.48654971,121.71,121.67,0.7]
[1766553756064,2.48654971,121.71,121.67,2.51654971]
[1766553756370,0.67,121.71,121.68,1.81654971]
[1766553757085,0.71,121.73,121.69,2.53654971]
[1766553757292,2.52654971,121.73,121.68,2.53654971]
[1766553757464,0.71,121.72,121.68,0.72]
[1766553757665,0.71,121.72,121.68,1.81654971]
[1766553757862,0.71,121.72,121.68,2.53654971]
[1766553758966,0.71,121.71,121.68,2.53654971]
[1766553759488,0.71,121.69,121.66,0.72]
[1766553759681,12.25422267,121.68,121.63,0.2]
[1766553759884,2.52654971,121.66,121.63,0.2]
[1766553760996,0.71,121.64,121.62,0.2]
[1766553761170,10.74760953,121.64,121.61,0.2]
[1766553761375,0.71,121.63,121.61,0.2]
[1766553762775,8.21962847,121.66,121.61,0.2]
[1766553762996,8.92962847,121.66,121.62,2.53654971]
[1766553763297,1.81654971,121.65,121.61,0.2]
[1766553763500,0.71,121.64,121.61,0.92]
[1766553763706,0.71,121.64,121.61,2.73654971]
[1766553764274,8.21909427,121.67,121.63,2.53654971]
[1766553764502,8.92909427,121.67,121.63,2.53654971]
[1766553764696,10.74564398,121.67,121.63,2.53654971]
[1766553764997,0.71,121.68,121.64,2.53654971]
[1766553765898,0.71,121.7,121.66,1.81654971]
[1766553766105,0.71,121.7,121.67,0.72]
[1766553766777,10.03227165,121.72,121.68,2.53654971]
[1766553766994,8.92572194,121.72,121.68,2.53654971]
[1766553767890,8.92572194,121.72,121.69,1.81654971]
[1766553768203,8.92572194,121.72,121.68,2.53654971]
[1766553768393,0.71,121.71,121.67,1.81654971]
[1766553769096,0.71,121.71,121.67,2.53654971]
[1766553769707,8.92655824,121.71,121.67,2.53654971]
[1766553770510,10.74310795,121.71,121.67,0.72]
[1766553770692,10.74310795,121.71,121.67,2.53654971]
[1766553770895,10.74232843,121.72,121.68,0.72]
[1766553771401,0.71,121.7,121.66,0.72]
[1766553771607,0.71,121.7,121.65,1.81654971]
[1766553771608,0.71,121.69,121.65,1.81654971]
[1766553771807,2.52654971,121.69,121.64,2.53654971]
[1766553772009,2.52654971,121.69,121.65,0.72]
[1766553772899,0.71,121.69,121.65,2.53654971]
[1766553773304,2.52654971,121.69,121.65,2.53654971]
[1766553773601,1.81654971,121.69,121.66,0.72]
[1766553773807,0.71,121.69,121.66,0.72]
[1766553774304,0.71,121.69,121.65,1.81654971]
[1766553774502,0.71,121.69,121.64,2.53654971]
[1766553774503,2.52654971,121.69,121.64,2.53654971]
[1766553774705,2.52654971,121.69,121.65,0.72]
[1766553774907,0.71,121.68,121.65,0.72]
[1766553776695,10.7445845,121.69,121.65,0.72]
[1766553777286,119.3436563,122.77,121.65,10.03659807]
[1766553777287,4.28407511,121.76,121.65,10.03659807]
[1766553777489,4.28407511,121.76,121.71,10.43767296]
[1766553777694,0.71,121.8,121.75,0.72]
[1766553777890,0.71,121.8,121.71,10.43767296]
[1766553778117,10.43767296,121.78,121.72,15.72]
[1766553778416,1.81654971,121.75,121.72,0.72]
[1766553778595,1.81654971,121.76,121.72,0.72]
[1766553778793,2.52654971,121.77,121.72,1.81654971]
[1766553778999,2.52654971,121.77,121.73,0.72]
[1766553779499,10.73891272,121.77,121.73,0.72]
[1766553779907,0.71,121.75,121.71,2.53654971]
[1766553780099,5.24918968,121.75,121.71,0.72]
[1766553780295,5.24918968,121.74,121.69,20.25918968]
[1766553780611,4.53918968,121.73,121.69,0.72]
[1766553781123,0.71,121.73,121.69,0.72]
[1766553781297,5.24918968,121.72,121.68,0.72]
[1766553781999,5.24918968,121.72,121.68,5.25918968]
[1766553782195,0.71,121.72,121.68,0.72]
[1766553782400,5.24918968,121.72,121.68,0.72]
[1766553782921,5.24918968,121.72,121.68,5.25918968]
[1766553783502,5.24918968,121.72,121.68,0.72]
[1766553787618,8.21531012,121.73,121.69,0.69]
[1766553787804,13.4344998,121.73,121.69,0.69]
[1766553789617,23.87125064,121.74,121.7,0.69]
[1766553789922,4.53918968,121.72,121.68,0.69]
[1766553790123,4.53918968,121.71,121.68,0.69]
[1766553790629,5.21918968,121.72,121.68,0.69]
[1766553791921,4.53918968,121.71,121.68,0.69]
[1766553792630,8.89599789,121.72,121.68,0.69]
[1766553792631,13.43518757,121.72,121.68,0.69]
[1766553793412,0.68,121.72,121.69,0.69]
[1766553793813,23.87128494,121.74,121.7,0.69]
[1766553794127,8.21293318,121.76,121.72,0.69]
[1766553794431,8.21293318,121.76,121.73,0.69]
[1766553794608,12.75212286,121.76,121.73,0.69]
[1766553795218,12.75212286,121.76,121.71,4.53918968]
[1766553795424,5.21918968,121.75,121.71,0.69]
[1766553796431,13.43320271,121.75,121.71,5.22918968]
[1766553796635,13.43320271,121.75,121.71,0.69]
[1766553796820,13.43320271,121.75,121.71,5.22918968]
[1766553797021,13.43320271,121.75,121.71,0.69]
[1766553798035,13.43320271,121.75,121.71,5.22918968]
[1766553798241,13.43320271,121.75,121.71,0.69]
[1766553798410,12.75377438,121.74,121.71,0.69]
[1766553799030,8.2145847,121.74,121.71,0.69]
[1766553800233,12.49715144,121.81,121.74,0.69]
[1766553800434,8.88903996,121.82,121.78,0.69]
[1766553800730,8.88903996,121.82,121.78,5.22918968]
[1766553803136,0.68,121.81,121.77,4.53918968]
[1766553803439,0.68,121.81,121.77,5.22918968]
[1766553805533,0.68,121.81,121.77,0.69]
[1766553805839,0.68,121.81,121.77,5.22918968]
[1766553807321,0.68,121.81,121.77,0.69]
[1766553807523,0.68,121.81,121.77,5.22918968]
[1766553808427,8.88957465,121.81,121.77,5.22918968]
[1766553809241,8.88957465,121.81,121.77,0.69]
[1766553810818,10.703394,121.81,121.77,0.69]
[1766553813945,11.72376409,121.81,121.77,0.69]
[1766553814921,8.88957465,121.81,121.77,2.83418944]
[1766553815231,8.88957465,121.81,121.78,0.71]
[1766553815546,8.20906439,121.82,121.78,0.71]
[1766553815722,11.75325383,121.82,121.78,0.71]
[1766553816732,11.75325383,121.82,121.78,3.54418944]
[1766553817046,8.20906439,121.82,121.78,2.83418944]
[1766553817248,4.28597736,121.86,121.81,2.83418944]
[1766553817448,4.28597736,121.86,121.81,10.43767296]
[1766553817629,3.55418944,121.87,121.81,10.43767296]
[1766553817824,0.72,121.86,121.82,10.43767296]
[1766553818030,0.72,121.86,121.82,17.79998169]
[1766553819322,0.72,121.86,121.82,32.79998169]
[1766553819828,0.72,121.86,121.82,17.79998169]
[1766553820029,0.72,121.86,121.82,32.79998169]
[1766553820450,8.92633026,121.86,121.82,25.43767296]
[1766553820647,8.08230873,121.85,121.81,22.36230873]
[1766553821031,0.72,121.85,121.81,22.36230873]
[1766553821728,0.72,121.85,121.81,15.0]
[1766553821928,0.72,121.85,121.81,22.36230873]
[1766553829138,0.72,121.85,121.81,15.0]
[1766553829338,0.72,121.85,121.81,22.36230873]
[1766553830134,20.51197899,121.88,121.81,22.36230873]
[1766553830340,7.36230873,121.86,121.81,22.36230873]
[1766553830657,0.72,121.85,121.81,22.36230873]
[1766553831238,0.72,121.87,121.83,7.36230873]
[1766553831657,8.20502588,121.88,121.81,23.20903781]
[1766553831836,0.72,121.87,121.83,7.36230873]
[1766553832036,0.72,121.87,121.81,23.20903781]
[1766553832237,0.72,121.87,121.83,7.36230873]
[1766553833860,0.72,121.87,121.84,22.34230873]
[1766553837272,0.72,121.87,121.84,14.98]
[1766553838364,8.30411846,121.89,121.84,17.8109648]
[1766553838569,8.30411846,121.89,121.85,2.8309648]
[1766553838778,9.02411846,121.89,121.85,2.8309648]
[1766553839480,0.82,121.89,121.86,2.8309648]
[1766553840763,0.1,121.89,121.86,2.8309648]
[1766553841175,0.82,121.89,121.84,23.18725041]
[1766553841484,0.72,121.87,121.84,10.43767296]
[1766553841982,0.72,121.87,121.83,17.8109648]
[1766553842289,0.1,121.89,121.85,2.8309648]
[1766553842490,0.82,121.89,121.86,14.98]
[1766553842660,3.6509648,121.89,121.86,14.98]
[1766553842864,0.82,121.89,121.86,14.98]
[1766553843079,0.82,121.89,121.86,26.01703685]
[1766553843283,0.1,121.89,121.87,2.8309648]
[1766553844280,0.1,121.89,121.88,2.8309648]
[1766553845184,0.1,121.89,121.87,2.8309648]
[1766553845388,0.1,121.89,121.86,26.01703685]
[1766553846369,0.82,121.89,121.86,26.01703685]
[1766553847270,0.1,121.89,121.86,26.01703685]
[1766553847675,0.1,121.89,121.87,2.8309648]
[1766553849189,0.1,121.89,121.86,26.01703685]
[1766553849392,0.1,121.89,121.86,11.03703685]
[1766553849585,0.76,121.89,121.87,14.98]
[1766553851886,0.76,121.89,121.86,10.43767296]
[1766553853800,0.76,121.89,121.86,25.41767296]
[1766553854096,2.9309648,121.89,121.86,25.41767296]
[1766553854403,0.76,121.89,121.86,25.41767296]
[1766553855373,0.66,121.88,121.86,14.98]
[1766553855798,0.76,121.89,121.86,17.8109648]
[1766553857876,0.76,121.89,121.86,14.98]
[1766553858076,0.1,121.89,121.86,26.01655804]
[1766553859988,0.1,121.89,121.87,2.8309648]
[1766553860479,0.1,121.89,121.86,26.01655804]
[1766553862905,0.1,121.89,121.86,17.8109648]
[1766553864796,0.1,121.89,121.86,26.01690739]
[1766553867708,0.66,121.92,121.88,2.8309648]
[1766553867905,0.66,121.92,121.88,17.8109648]
[1766553868993,3.4909648,121.92,121.88,14.98]
[1766553869304,0.66,121.91,121.88,14.98]
[1766553874616,0.66,121.91,121.87,10.0155371]
[1766553874815,0.66,121.91,121.88,14.98]
[1766553875489,0.1,121.94,121.9,1.81057006]
[1766553875687,0.8,121.94,121.91,27.22824302]
[1766553875912,1.91057006,121.94,121.91,25.41767296]
[1766553876092,0.7,121.93,121.91,25.41767296]
[1766553876416,0.7,121.93,121.91,14.98]
[1766553876714,0.7,121.93,121.91,25.41767296]
[1766553876909,0.7,121.93,121.91,10.43767296]
[1766553877101,0.7,121.93,121.91,14.98]
[1766553878792,0.78,121.94,121.91,16.79057006]
[1766553880017,0.78,121.94,121.91,14.98]
[1766553880197,0.78,121.94,121.91,16.79057006]
[1766553880717,0.78,121.94,121.91,14.98]
[1766553885397,2.59057006,121.94,121.91,14.98]
[1766553885596,0.78,121.94,121.91,14.98]
[1766553885822,2.59057006,121.94,121.91,14.98]
[1766553886023,0.78,121.94,121.91,24.99317496]
[1766553886202,0.1,121.94,121.92,1.81057006]
[1766553887098,0.1,121.94,121.93,16.79057006]
[1766553887298,0.1,121.95,121.93,16.79057006]
[1766553887919,0.1,121.95,121.93,24.99180455]